fUST/lending_fUST_20241230
["ID","MTS","AMOUNT","RATE_DAILY","PERIOD"]
[347176820,1735548646228,-500.0,0.00015319,2]
[347176821,1735548646238,-500.0,0.00015319,2]
[347176822,1735548646247,-500.0,0.00015593,2]
[347176823,1735548646256,-500.0,0.00015593,2]
[347176824,1735548646266,-693.45,0.00015616,2]
[347176825,1735548646275,-33306.1708933,0.00015617,2]
[347176857,1735548854566,447.0,0.00025,120]
[347176862,1735549246306,500.0,0.00025,120]
[347176863,1735549284085,1762.0,0.00025,120]
[347176864,1735549321471,500.0,0.00025,120]
[347176870,1735549473254,500.0,0.00021521,120]
[347176907,1735549722454,-1111.8161801,0.00013685,2]
[347176908,1735549722481,-240.84049285,0.00013823,2]
[347176922,1735549747328,-870.97568725,0.00013685,2]
[347176923,1735549747354,-586.17567205,0.00013823,2]
[347176987,1735549838366,-284.8000152,0.00013685,2]
[347176989,1735549838376,-284.8000152,0.00013823,2]
[347176991,1735549838385,-500.0,0.00014698,2]
[347176993,1735549838395,-500.0,0.00014698,2]
[347176995,1735549838404,-500.0,0.00014698,2]
[347176996,1735549838413,-300.0,0.00014698,2]
[347176997,1735549838422,-153.10504408,0.00014699,2]
[347176999,1735549838432,-500.0,0.00014699,2]
[347177000,1735549838441,-500.0,0.00014699,2]
[347177001,1735549838451,-500.0,0.00014699,2]
[347177002,1735549838464,-500.0,0.00014699,2]
[347177003,1735549838474,-500.0,0.00014699,2]
[347177004,1735549838483,-500.0,0.00014699,2]
[347177005,1735549838493,-500.0,0.00014699,2]
[347177006,1735549838503,-500.0,0.00014699,2]
[347177007,1735549838512,-608.89950455,0.00014699,2]
[347177008,1735549838521,-500.0,0.00014699,2]
[347177009,1735549838531,-500.0,0.00014699,2]
[347177010,1735549838541,-500.0,0.00014699,2]
[347177011,1735549838550,-500.0,0.00014699,2]
[347177012,1735549838560,-500.0,0.00014699,2]
[347177013,1735549838570,-500.0,0.00014699,2]
[347177014,1735549838579,-500.0,0.00014699,2]
[347177015,1735549838589,-500.0,0.00014699,2]
[347177016,1735549838598,-500.0,0.00014699,2]
[347177017,1735549838607,-256.31869186,0.00014699,2]
[347177018,1735549838616,-500.0,0.00014699,2]
[347177019,1735549838626,-500.0,0.00014699,2]
[347177020,1735549838636,-500.0,0.00014699,2]
[347177021,1735549838645,-500.0,0.00014699,2]
[347177022,1735549838655,-500.0,0.00014699,2]
[347177023,1735549838664,-500.0,0.00014699,2]
[347177024,1735549838673,-500.0,0.00014699,2]
[347177025,1735549838682,-500.0,0.00014699,2]
[347177026,1735549838691,-500.0,0.00014699,2]
[347177027,1735549838701,-500.0,0.00014699,2]
[347177028,1735549838710,-500.0,0.00014699,2]
[347177029,1735549838719,-500.0,0.00014699,2]
[347177030,1735549838728,-500.0,0.00014699,2]
[347177031,1735549838737,-500.0,0.00014699,2]
[347177032,1735549838746,-520.6232504,0.00014699,2]
[347177033,1735549838755,-786.88,0.00014699,2]
[347177034,1735549838764,-500.0,0.00014699,2]
[347177035,1735549838773,-8349.53,0.00014699,2]
[347177036,1735549838782,-539955.35,0.000147,2]
[347177037,1735549838791,-2366.05969896,0.00014759,2]
[347177038,1735549838800,-152.0,0.00014781,2]
[347177039,1735549838809,-282.06484272,0.00014972,2]
[347177040,1735549838819,-500.0,0.00014972,2]
[347177041,1735549838828,-500.0,0.00014972,2]
[347177042,1735549838837,-786.88,0.00014973,2]
[347177043,1735549838846,-8349.53,0.00014973,2]
[347177044,1735549838856,-2366.05969896,0.00014985,2]
[347177045,1735549838865,-500.0,0.00014999,2]
[347177046,1735549838874,-500.0,0.00014999,2]
[347177047,1735549838884,-500.0,0.00014999,2]
[347177048,1735549838893,-500.0,0.00014999,2]
[347177049,1735549838902,-500.0,0.00014999,2]
[347177050,1735549838912,-500.0,0.00014999,2]
[347177051,1735549838921,-500.0,0.00014999,2]
[347177052,1735549838930,-500.0,0.00014999,2]
[347177053,1735549838939,-500.0,0.00014999,2]
[347177054,1735549838949,-502.67890568,0.00014999,2]
[347177055,1735549838958,-500.0,0.00014999,2]
[347177056,1735549838967,-500.0,0.00014999,2]
[347177057,1735549838976,-500.0,0.00014999,2]
[347177058,1735549838985,-500.0,0.00014999,2]
[347177059,1735549838995,-500.0,0.00014999,2]
[347177060,1735549839004,-500.0,0.00014999,2]
[347177061,1735549839013,-500.0,0.00014999,2]
[347177062,1735549839022,-500.0,0.00014999,2]
[347177063,1735549839032,-500.0,0.00014999,2]
[347177064,1735549839041,-290.41698403,0.00014999,2]
[347177065,1735549839051,-500.0,0.00014999,2]
[347177066,1735549839060,-500.0,0.00014999,2]
[347177067,1735549839071,-211.27658487,0.00014999,2]
[347177068,1735549839081,-500.0,0.00014999,2]
[347177069,1735549839091,-429.9560415,0.00014999,2]
[347177070,1735549839100,-500.0,0.00014999,2]
[347177071,1735549839109,-500.0,0.00014999,2]
[347177072,1735549839119,-500.0,0.00014999,2]
[347177073,1735549839129,-500.0,0.00014999,2]
[347177074,1735549839138,-173.34,0.00014999,2]
[347177075,1735549839147,-657.67,0.00014999,2]
[347177076,1735549839156,-637.8,0.00014999,2]
[347177077,1735549839166,-932.13,0.00014999,2]
[347177078,1735549839175,-932.13,0.00014999,2]
[347177079,1735549839184,-500.0,0.00014999,2]
[347177080,1735549839193,-932.13,0.00014999,2]
[347177081,1735549839202,-500.0,0.00014999,2]
[347177082,1735549839211,-500.0,0.00014999,2]
[347177083,1735549839220,-2904.9,0.00014999,2]
[347177084,1735549839318,-500.0,0.00014999,2]
[347177085,1735549839328,-334.99,0.00014999,2]
[347177086,1735549839338,-522.78,0.00014999,2]
[347177087,1735549839347,-234.21788297,0.00014999,2]
[347177088,1735549839356,-500.0,0.00014999,2]
[347177089,1735549839366,-500.0,0.00014999,2]
[347177090,1735549839375,-603.77826506,0.00014999,2]
[347177091,1735549839384,-3867.58,0.00014999,2]
[347177092,1735549839393,-258.15441714,0.00014999,2]
[347177093,1735549839403,-500.0,0.00014999,2]
[347177094,1735549839412,-602.35,0.00014999,2]
[347177095,1735549839421,-500.0,0.00014999,2]
[347177096,1735549839431,-500.0,0.00014999,2]
[347177097,1735549839440,-500.0,0.00014999,2]
[347177098,1735549839449,-500.0,0.00014999,2]
[347177099,1735549839461,-500.0,0.00014999,2]
[347177100,1735549839471,-500.0,0.00014999,2]
[347177101,1735549839480,-500.0,0.00014999,2]
[347177102,1735549839488,-500.0,0.00014999,2]
[347177103,1735549839497,-500.0,0.00014999,2]
[347177104,1735549839508,-64778.93291387,0.00015,2]
[347177105,1735549839517,-64778.93291372,0.00015016,2]
[347177106,1735549839526,-932.13,0.00015043,2]
[347177107,1735549839538,-321.69169354,0.00015044,2]
[347177108,1735549839548,-500.0,0.00015044,2]
[347177109,1735549839557,-500.0,0.00015044,2]
[347177110,1735549839567,-503.21971003,0.00015044,2]
[347177111,1735549839577,-507.5761612,0.00015044,2]
[347177112,1735549839587,-500.0,0.00015044,2]
[347177113,1735549839596,-500.0,0.00015044,2]
[347177114,1735549839604,-500.0,0.00015044,2]
[347177115,1735549839613,-500.0,0.00015044,2]
[347177116,1735549839623,-500.0,0.00015044,2]
[347177117,1735549839632,-646.95421612,0.00015044,2]
[347177118,1735549839641,-500.0,0.00015044,2]
[347177119,1735549839650,-500.0,0.00015044,2]
[347177120,1735549839660,-500.0,0.00015044,2]
[347177121,1735549839669,-500.0,0.00015044,2]
[347177122,1735549839678,-500.0,0.00015044,2]
[347177123,1735549839688,-500.0,0.00015044,2]
[347177124,1735549839697,-500.0,0.00015044,2]
[347177125,1735549839706,-500.0,0.00015044,2]
[347177126,1735549839716,-500.0,0.00015044,2]
[347177128,1735549839725,-500.0,0.00015044,2]
[347177129,1735549839734,-500.0,0.00015044,2]
[347177130,1735549839743,-500.0,0.00015045,2]
[347177131,1735549839752,-192.0,0.00015129,2]
[347177132,1735549839761,-2366.05969896,0.0001521,2]
[347177133,1735549839770,-500.0,0.00015246,2]
[347177134,1735549839780,-500.0,0.00015246,2]
[347177136,1735549839789,-786.88,0.00015247,2]
[347177138,1735549839799,-8349.53,0.00015247,2]
[347177140,1735549839808,-932.13,0.00015272,2]
[347177142,1735549839818,-500.0,0.00015273,2]
[347177143,1735549839830,-500.0,0.00015273,2]
[347177145,1735549839840,-500.0,0.00015273,2]
[347177146,1735549839849,-500.0,0.00015273,2]
[347177147,1735549839858,-511.68224917,0.00015273,2]
[347177148,1735549839867,-500.0,0.00015273,2]
[347177149,1735549839876,-500.0,0.00015273,2]
[347177150,1735549839886,-500.0,0.00015273,2]
[347177152,1735549839895,-657.67,0.00015273,2]
[347177154,1735549839905,-500.0,0.00015273,2]
[347177155,1735549839914,-500.0,0.00015273,2]
[347177156,1735549839923,-500.0,0.00015273,2]
[347177157,1735549839932,-2904.9,0.00015273,2]
[347177158,1735549839941,-500.0,0.00015273,2]
[347177159,1735549839951,-500.0,0.00015273,2]
[347177160,1735549839960,-500.0,0.00015273,2]
[347177161,1735549839969,-3867.58,0.00015273,2]
[347177162,1735549839979,-500.0,0.00015273,2]
[347177163,1735549839987,-500.0,0.00015273,2]
[347177164,1735549839997,-500.0,0.00015273,2]
[347177166,1735549840007,-500.0,0.00015273,2]
[347177168,1735549840015,-500.0,0.00015273,2]
[347177170,1735549840025,-500.0,0.00015273,2]
[347177172,1735549840034,-500.0,0.00015273,2]
[347177173,1735549840046,-500.0,0.00015273,2]
[347177174,1735549840055,-500.0,0.00015273,2]
[347177176,1735549840064,-932.13,0.00015284,2]
[347177177,1735549840075,-932.13,0.00015284,2]
[347177178,1735549840084,-932.13,0.00015284,2]
[347177179,1735549840093,-151.0,0.000153,2]
[347177180,1735549840103,-151.0,0.000153,2]
[347177181,1735549840112,-151.0,0.000153,2]
[347177182,1735549840121,-500.0,0.00015318,2]
[347177183,1735549840130,-500.0,0.00015318,2]
[347177184,1735549840139,-500.0,0.00015318,2]
[347177185,1735549840148,-188.61829611,0.00015318,2]
[347177186,1735549840157,-64778.93291372,0.00015374,2]
[347177187,1735549840167,-151.0,0.000154,2]
[347177188,1735549840176,-151.0,0.000154,2]
[347177189,1735549840186,-151.0,0.000154,2]
[347177190,1735549840195,-5701.02097964,0.00015417,2]
[347177191,1735549840231,-167.55273127,0.00015417,2]
[347177192,1735549840240,-379.27328065,0.00015436,2]
[347177196,1735549840289,-1192.2580604,0.00015436,2]
[347177217,1735549843353,-284.8000152,0.00013548,2]
[347177218,1735549843362,-794.52835791,0.00015436,2]
[347177219,1735549843371,-1453.1618944,0.0001546,2]
[347177220,1735549843380,-9945.95067571,0.0001547,2]
[347177221,1735549843389,-151.0,0.000155,2]
[347177222,1735549843398,-151.0,0.000155,2]
[347177223,1735549843407,-151.0,0.000155,2]
[347177225,1735549843415,-151.0,0.000155,2]
[347177226,1735549843424,-932.13,0.00015513,2]
[347177227,1735549843433,-634.53,0.00015514,2]
[347177228,1735549843442,-500.0,0.00015514,2]
[347177229,1735549843450,-570.9304,0.00015514,2]
[347177230,1735549843463,-2806.13414889,0.00015517,2]
[347177231,1735549843472,-500.0,0.0001552,2]
[347177232,1735549843481,-500.0,0.0001552,2]
[347177233,1735549843490,-786.88,0.00015521,2]
[347177234,1735549843499,-8349.53,0.00015521,2]
[347177235,1735549843508,-1306.64702798,0.00015541,2]
[347177236,1735549843517,-500.0,0.00015547,2]
[347177237,1735549843526,-268.10384594,0.00015547,2]
[347177238,1735549843537,-500.0,0.00015547,2]
[347177239,1735549843547,-657.67,0.00015547,2]
[347177240,1735549843556,-500.0,0.00015547,2]
[347177241,1735549843566,-500.0,0.00015547,2]
[347177242,1735549843576,-2904.9,0.00015547,2]
[347177243,1735549843586,-500.0,0.00015547,2]
[347177244,1735549843595,-3867.58,0.00015547,2]
[347177245,1735549843604,-500.0,0.00015547,2]
[347177246,1735549843613,-500.0,0.00015547,2]
[347177247,1735549843622,-500.0,0.00015547,2]
[347177248,1735549843631,-500.0,0.00015547,2]
[347177249,1735549843641,-500.0,0.00015547,2]
[347177250,1735549843650,-500.0,0.00015592,2]
[347177251,1735549843659,-500.0,0.00015592,2]
[347177252,1735549843668,-251.01221582,0.00015593,2]
[347177253,1735549843677,-151.0,0.000156,2]
[347177254,1735549843686,-932.13,0.00015615,2]
[347177255,1735549843695,-160.75086749,0.00015616,2]
[347177256,1735549843705,-851.15,0.00015616,2]
[347177257,1735549843714,-691.09,0.00015616,2]
[347177258,1735549843723,-932.13,0.00015616,2]
[347177259,1735549843732,-932.13,0.00015616,2]
[347177260,1735549843741,-932.13,0.00015616,2]
[347177261,1735549843751,-932.13,0.00015616,2]
[347177262,1735549843760,-932.13,0.00015616,2]
[347177263,1735549843769,-932.13,0.00015616,2]
[347177264,1735549843778,-932.13,0.00015616,2]
[347177265,1735549843787,-932.13,0.00015616,2]
[347177266,1735549843796,-932.13,0.00015616,2]
[347177267,1735549843805,-932.13,0.00015616,2]
[347177268,1735549843814,-932.13,0.00015616,2]
[347177269,1735549843824,-932.13,0.00015616,2]
[347177270,1735549843833,-932.13,0.00015616,2]
[347177271,1735549843842,-932.23,0.00015616,2]
[347177272,1735549843851,-160.0,0.00015616,2]
[347177273,1735549843860,-160.0,0.00015616,2]
[347177274,1735549843869,-70299.12380579,0.00015617,2]
[347177275,1735549843885,-41587.9092805,0.00015617,2]
[347177276,1735549843896,-13598.82677018,0.00015617,2]
[347177296,1735550024015,4716.88,0.00025,120]
[347177297,1735550044377,1066.692,0.00025,120]
[347177298,1735550338883,222.0,0.00025,120]
[347177299,1735550535234,1007.0,0.00025,120]
[347177316,1735550913639,211.36960532,0.00021542,90]
[347177319,1735550918366,889.85882593,0.00025,120]
[347177337,1735550967536,-1554.24002252,0.0001338,2]
[347177339,1735550967566,-699.772592,0.0001338,2]
[347177340,1735550967592,-854.46743052,0.00013515,2]
[347177344,1735550992550,-1591.43965298,0.00013515,2]
[347177345,1735550992575,-24.96997045,0.00013585,2]
[347177346,1735550992604,-171.27267404,0.00013585,2]
[347177347,1735550992628,-355.92132298,0.00013698,2]
[347177386,1735551032870,-306.45570352,0.00013698,2]
[347177387,1735551032880,-174.79929648,0.00013699,2]
[347177388,1735551032891,-18.16224152,0.00013699,2]
[347177389,1735551032901,-324.513111,0.00013973,2]
[347177390,1735551032914,-2070.30223659,0.00014596,2]
[347177391,1735551032924,-190.3946811,0.00014688,2]
[347177392,1735551032933,-300.0,0.00014694,2]
[347177393,1735551032943,-500.0,0.00014695,2]
[347177394,1735551032953,-500.0,0.00014695,2]
[347177395,1735551032962,-500.0,0.00014695,2]
[347177396,1735551032971,-500.0,0.00014695,2]
[347177397,1735551032981,-500.0,0.00014695,2]
[347177398,1735551032990,-500.0,0.00014695,2]
[347177399,1735551033000,-500.0,0.00014695,2]
[347177400,1735551033009,-500.0,0.00014695,2]
[347177401,1735551033019,-500.0,0.00014695,2]
[347177402,1735551033028,-500.0,0.00014695,2]
[347177403,1735551033037,-502.67659664,0.00014695,2]
[347177404,1735551033047,-500.0,0.00014695,2]
[347177405,1735551033056,-500.0,0.00014695,2]
[347177406,1735551033066,-500.0,0.00014695,2]
[347177407,1735551033075,-500.0,0.00014695,2]
[347177408,1735551033085,-500.0,0.00014695,2]
[347177409,1735551033094,-500.0,0.00014695,2]
[347177410,1735551033105,-500.0,0.00014695,2]
[347177411,1735551033115,-500.0,0.00014695,2]
[347177412,1735551033124,-500.0,0.00014695,2]
[347177413,1735551033134,-500.0,0.00014695,2]
[347177414,1735551033144,-500.0,0.00014695,2]
[347177415,1735551033153,-178.76661162,0.00014695,2]
[347177416,1735551033163,-500.0,0.00014695,2]
[347177417,1735551033172,-500.0,0.00014695,2]
[347177418,1735551033182,-500.0,0.00014695,2]
[347177419,1735551033191,-500.0,0.00014695,2]
[347177420,1735551033201,-500.37651465,0.00014695,2]
[347177421,1735551033211,-500.0,0.00014695,2]
[347177422,1735551033220,-500.0,0.00014695,2]
[347177423,1735551033230,-500.0,0.00014695,2]
[347177424,1735551033239,-226.16952946,0.00014695,2]
[347177425,1735551033248,-500.0,0.00014695,2]
[347177426,1735551033258,-500.0,0.00014695,2]
[347177427,1735551033267,-500.0,0.00014695,2]
[347177428,1735551033276,-500.0,0.00014695,2]
[347177429,1735551033285,-468.70511355,0.00014695,2]
[347177430,1735551033294,-500.0,0.00014695,2]
[347177431,1735551033303,-500.0,0.00014695,2]
[347177432,1735551033312,-500.0,0.00014695,2]
[347177433,1735551033322,-500.0,0.00014695,2]
[347177434,1735551033331,-203.32640375,0.00014695,2]
[347177435,1735551033340,-500.0,0.00014695,2]
[347177436,1735551033351,-500.0,0.00014695,2]
[347177437,1735551033360,-500.0,0.00014695,2]
[347177438,1735551033370,-368.85237184,0.00014695,2]
[347177439,1735551033379,-500.0,0.00014695,2]
[347177440,1735551033388,-500.0,0.00014695,2]
[347177441,1735551033398,-257.52611586,0.00014695,2]
[347177442,1735551033407,-500.0,0.00014695,2]
[347177443,1735551033416,-500.0,0.00014695,2]
[347177444,1735551033425,-500.0,0.00014695,2]
[347177445,1735551033435,-500.0,0.00014695,2]
[347177446,1735551033443,-500.0,0.00014695,2]
[347177447,1735551033453,-548.43939526,0.00014695,2]
[347177448,1735551033462,-500.0,0.00014695,2]
[347177449,1735551033472,-500.0,0.00014695,2]
[347177450,1735551033481,-500.0,0.00014695,2]
[347177451,1735551033490,-500.0,0.00014695,2]
[347177452,1735551033500,-500.0,0.00014695,2]
[347177453,1735551033509,-500.0,0.00014695,2]
[347177454,1735551033517,-500.0,0.00014695,2]
[347177455,1735551033526,-500.0,0.00014695,2]
[347177456,1735551033535,-500.0,0.00014696,2]
[347177457,1735551033544,-500.0,0.00014696,2]
[347177458,1735551033553,-500.0,0.00014696,2]
[347177459,1735551033562,-500.0,0.00014696,2]
[347177460,1735551033571,-500.0,0.00014696,2]
[347177461,1735551033581,-500.0,0.00014696,2]
[347177462,1735551033590,-500.0,0.00014696,2]
[347177463,1735551033599,-500.0,0.00014696,2]
[347177464,1735551033609,-500.0,0.00014696,2]
[347177465,1735551033618,-500.0,0.00014696,2]
[347177466,1735551033627,-500.0,0.00014696,2]
[347177467,1735551033636,-500.0,0.00014696,2]
[347177468,1735551033646,-500.0,0.00014696,2]
[347177469,1735551033655,-500.0,0.00014696,2]
[347177470,1735551033664,-500.0,0.00014696,2]
[347177471,1735551033673,-500.0,0.00014696,2]
[347177472,1735551033683,-500.0,0.00014696,2]
[347177473,1735551033692,-544.1,0.00014696,2]
[347177474,1735551033701,-500.0,0.00014696,2]
[347177475,1735551033710,-500.0,0.00014696,2]
[347177476,1735551033719,-500.0,0.00014696,2]
[347177477,1735551033729,-500.0,0.00014696,2]
[347177478,1735551033738,-500.0,0.00014696,2]
[347177479,1735551033747,-500.0,0.00014696,2]
[347177480,1735551033756,-500.0,0.00014696,2]
[347177481,1735551033765,-500.0,0.00014696,2]
[347177482,1735551033775,-290.41698403,0.00014696,2]
[347177483,1735551033784,-500.0,0.00014696,2]
[347177484,1735551033793,-500.0,0.00014696,2]
[347177485,1735551033802,-500.0,0.00014696,2]
[347177486,1735551033812,-500.0,0.00014696,2]
[347177487,1735551033822,-500.0,0.00014696,2]
[347177488,1735551033832,-500.0,0.00014696,2]
[347177489,1735551033842,-504.80506325,0.00014696,2]
[347177490,1735551033852,-500.0,0.00014696,2]
[347177491,1735551033861,-500.0,0.00014696,2]
[347177492,1735551033871,-500.0,0.00014696,2]
[347177493,1735551033880,-500.0,0.00014696,2]
[347177494,1735551033889,-500.0,0.00014696,2]
[347177495,1735551033899,-500.0,0.00014696,2]
[347177496,1735551033912,-352.23202336,0.00014696,2]
[347177497,1735551033921,-630.26,0.00014696,2]
[347177498,1735551033931,-2804.7,0.00014696,2]
[347177499,1735551033940,-500.0,0.00014696,2]
[347177500,1735551033951,-500.0,0.00014696,2]
[347177501,1735551033960,-522.78,0.00014696,2]
[347177502,1735551033970,-258.15441714,0.00014696,2]
[347177503,1735551033979,-500.0,0.00014696,2]
[347177504,1735551033989,-500.0,0.00014697,2]
[347177505,1735551033999,-500.0,0.00014697,2]
[347177506,1735551034009,-500.0,0.00014697,2]
[347177507,1735551034018,-500.0,0.00014697,2]
[347177508,1735551034027,-500.0,0.00014697,2]
[347177509,1735551034036,-500.0,0.00014697,2]
[347177510,1735551034131,-500.0,0.00014697,2]
[347177511,1735551034144,-500.0,0.00014697,2]
[347177512,1735551034154,-500.0,0.00014697,2]
[347177513,1735551034164,-432.78831361,0.00014697,2]
[347177514,1735551034173,-500.0,0.00014697,2]
[347177515,1735551034183,-504.88510161,0.00014697,2]
[347177516,1735551034192,-500.0,0.00014697,2]
[347177517,1735551034201,-500.0,0.00014697,2]
[347177518,1735551034211,-500.0,0.00014697,2]
[347177519,1735551034220,-500.0,0.00014697,2]
[347177520,1735551034230,-500.0,0.00014697,2]
[347177521,1735551034239,-500.0,0.00014697,2]
[347177522,1735551034248,-500.0,0.00014697,2]
[347177523,1735551034257,-500.0,0.00014697,2]
[347177524,1735551034266,-500.0,0.00014697,2]
[347177525,1735551034276,-500.0,0.00014697,2]
[347177526,1735551034285,-500.0,0.00014697,2]
[347177527,1735551034295,-500.0,0.00014697,2]
[347177528,1735551034304,-500.0,0.00014697,2]
[347177529,1735551034313,-500.0,0.00014697,2]
[347177530,1735551034323,-500.0,0.00014697,2]
[347177531,1735551034332,-500.28717453,0.00014697,2]
[347177532,1735551034342,-500.0,0.00014697,2]
[347177533,1735551034352,-500.0,0.00014697,2]
[347177534,1735551034362,-500.0,0.00014697,2]
[347177535,1735551034372,-500.0,0.00014697,2]
[347177536,1735551034382,-500.0,0.00014697,2]
[347177537,1735551034392,-500.0,0.00014697,2]
[347177538,1735551034401,-500.0,0.00014697,2]
[347177539,1735551034412,-500.0,0.00014697,2]
[347177540,1735551034421,-500.0,0.00014697,2]
[347177541,1735551034432,-500.0,0.00014697,2]
[347177542,1735551034442,-500.0,0.00014697,2]
[347177543,1735551034451,-500.0,0.00014697,2]
[347177544,1735551034461,-500.0,0.00014697,2]
[347177545,1735551034471,-500.0,0.00014697,2]
[347177546,1735551034481,-500.0,0.00014697,2]
[347177547,1735551034490,-500.0,0.00014697,2]
[347177548,1735551034500,-520.89639917,0.00014697,2]
[347177549,1735551034509,-500.0,0.00014697,2]
[347177550,1735551034519,-500.0,0.00014697,2]
[347177551,1735551034528,-211.27658487,0.00014697,2]
[347177552,1735551034537,-500.0,0.00014697,2]
[347177553,1735551034547,-500.0,0.00014697,2]
[347177554,1735551034557,-500.0,0.00014697,2]
[347177555,1735551034567,-500.0,0.00014697,2]
[347177556,1735551034576,-500.0,0.00014697,2]
[347177557,1735551034586,-603.34,0.00014697,2]
[347177558,1735551034595,-500.0,0.00014697,2]
[347177559,1735551034607,-500.0,0.00014697,2]
[347177560,1735551034618,-500.0,0.00014697,2]
[347177561,1735551034627,-500.0,0.00014697,2]
[347177562,1735551034636,-500.0,0.00014697,2]
[347177563,1735551034645,-500.0,0.00014697,2]
[347177564,1735551034654,-290.55112284,0.00014697,2]
[347177565,1735551034663,-609.16533686,0.00014697,2]
[347177566,1735551034672,-500.0,0.00014697,2]
[347177567,1735551034681,-305.22651487,0.00014697,2]
[347177568,1735551034690,-288.00201852,0.00014697,2]
[347177569,1735551034699,-500.0,0.00014697,2]
[347177570,1735551034708,-500.0,0.00014697,2]
[347177571,1735551034717,-500.0,0.00014697,2]
[347177572,1735551034726,-500.0,0.00014697,2]
[347177573,1735551034735,-204.06087272,0.00014697,2]
[347177574,1735551034743,-470.31144889,0.00014697,2]
[347177575,1735551034752,-500.0,0.00014697,2]
[347177576,1735551034761,-603.77826506,0.00014697,2]
[347177577,1735551034770,-500.0,0.00014697,2]
[347177578,1735551034779,-500.0,0.00014697,2]
[347177579,1735551034789,-500.0,0.00014697,2]
[347177580,1735551034797,-500.26962273,0.00014697,2]
[347177581,1735551034806,-500.0,0.00014697,2]
[347177582,1735551034815,-500.0,0.00014697,2]
[347177583,1735551034824,-500.0,0.00014697,2]
[347177584,1735551034834,-500.0,0.00014697,2]
[347177585,1735551034843,-500.0,0.00014697,2]
[347177586,1735551034854,-500.0,0.00014697,2]
[347177587,1735551034863,-742.14,0.00014697,2]
[347177588,1735551034872,-500.0,0.00014697,2]
[347177589,1735551034881,-500.0,0.00014697,2]
[347177590,1735551034890,-500.0,0.00014697,2]
[347177591,1735551034899,-500.0,0.00014697,2]
[347177592,1735551034911,-500.0,0.00014697,2]
[347177593,1735551034920,-500.0,0.00014697,2]
[347177594,1735551034930,-500.0,0.00014697,2]
[347177595,1735551034939,-500.0,0.00014697,2]
[347177596,1735551034949,-500.0,0.00014697,2]
[347177597,1735551034958,-500.0,0.00014697,2]
[347177598,1735551034967,-500.0,0.00014697,2]
[347177599,1735551034977,-500.0,0.00014697,2]
[347177600,1735551034987,-500.0,0.00014697,2]
[347177601,1735551034996,-500.0,0.00014697,2]
[347177602,1735551035005,-3021.35825975,0.00014697,2]
[347177636,1735551038393,-500.0,0.00014549,2]
[347177638,1735551038403,-813.73607713,0.00014598,2]
[347177640,1735551038412,-500.0,0.00014696,2]
[347177642,1735551038421,-4653.21174025,0.00014697,2]
[347177644,1735551038431,-500.0,0.00014697,2]
[347177646,1735551038441,-500.0,0.00014697,2]
[347177648,1735551038450,-502.24284396,0.00014697,2]